fUSD/lending_fUSD_20250530
["ID","MTS","AMOUNT","RATE_DAILY","PERIOD"]
[363166039,1748605852471,-420.0,0.00022465,2]
[363166040,1748605852482,-1221.59,0.00022465,2]
[363166041,1748605852492,-420.0,0.00022465,2]
[363166042,1748605852502,-4048.78,0.00022465,2]
[363166043,1748605852512,-459.04,0.00022465,2]
[363166044,1748605852522,-658.11,0.00022465,2]
[363166045,1748605852531,-627.21,0.00022465,2]
[363166046,1748605852542,-420.0,0.00022465,2]
[363166047,1748605852552,-1969.36,0.00022465,2]
[363166048,1748605852562,-420.0,0.00022465,2]
[363166049,1748605852572,-1915.49,0.00022465,2]
[363166050,1748605852582,-420.0,0.00022465,2]
[363166051,1748605852592,-420.0,0.00022465,2]
[363166052,1748605852603,-250.0,0.00022465,2]
[363166053,1748605852613,-856.27,0.00022465,2]
[363166054,1748605852624,-4677.87,0.00022465,2]
[363166055,1748605852634,-1646.48,0.00022465,2]
[363166056,1748605852644,-524.0,0.00022465,2]
[363166057,1748605852655,-420.0,0.00022465,2]
[363166058,1748605852668,-3698.85,0.00022465,2]
[363166059,1748605852678,-615.26,0.00022465,2]
[363166060,1748605852688,-7636.36,0.00022465,2]
[363166061,1748605852698,-420.0,0.00022465,2]
[363166062,1748605852708,-867.03,0.00022465,2]
[363166063,1748605852718,-420.0,0.00022465,2]
[363166064,1748605852728,-1865.89,0.00022465,2]
[363166065,1748605852738,-7173.39,0.00022465,2]
[363166066,1748605852748,-867.4,0.00022465,2]
[363166067,1748605852758,-1236.82,0.00022465,2]
[363166068,1748605852769,-652.09,0.00022465,2]
[363166069,1748605852779,-547.8,0.00022465,2]
[363166070,1748605852789,-999.38,0.00022465,2]
[363166071,1748605852799,-420.0,0.00022465,2]
[363166072,1748605852809,-420.0,0.00022465,2]
[363166073,1748605852819,-420.0,0.00022465,2]
[363166074,1748605852828,-420.0,0.00022465,2]
[363166075,1748605852837,-477.23,0.00022465,2]
[363166076,1748605852847,-438.67,0.00022465,2]
[363166077,1748605852858,-894.76,0.00022465,2]
[363166078,1748605852868,-2099.33,0.00022465,2]
[363166079,1748605852879,-420.0,0.00022465,2]
[363166080,1748605852890,-6481.04,0.00022465,2]
[363166081,1748605852900,-690.37,0.00022465,2]
[363166082,1748605852914,-11.53100557,0.00022465,2]
[363166083,1748605853661,-352.06359099,0.00022465,2]
[363166084,1748605853682,-798.14540344,0.00022465,2]
[363166085,1748605853691,-8764.41,0.00022465,2]
[363166086,1748605853701,-1259.85,0.00022465,2]
[363166087,1748605853710,-953.75,0.00022465,2]
[363166088,1748605853720,-851.02,0.00022465,2]
[363166089,1748605853730,-2656.72,0.00022465,2]
[363166090,1748605853739,-420.0,0.00022465,2]
[363166091,1748605853749,-887.21,0.00022465,2]
[363166092,1748605853759,-420.0,0.00022465,2]
[363166093,1748605853768,-458.66,0.00022465,2]
[363166094,1748605853778,-457.72,0.00022465,2]
[363166095,1748605853787,-552.45,0.00022465,2]
[363166096,1748605853797,-19541.58,0.00022465,2]
[363166097,1748605853807,-4160.92873147,0.00022465,2]
[363166098,1748605853819,-451.15504761,0.00022465,2]
[363166099,1748605853830,-599.73664137,0.00022465,2]
[363166100,1748605853843,-518.65232223,0.00022465,2]
[363166101,1748605853858,-2728.34224307,0.00022465,2]
[363166102,1748605853870,-1720.32690124,0.00022465,2]
[363166103,1748605853882,-912.75947795,0.00022465,2]
[363166104,1748605853893,-294.50991945,0.00022465,2]
[363166105,1748605853911,-1718.43871561,0.00022465,2]
[363166106,1748605853921,-521.49,0.00022465,2]
[363166107,1748605853931,-1072.46,0.00022465,2]
[363166108,1748605853941,-295.42,0.00022465,2]
[363166109,1748605853951,-3571.23,0.00022465,2]
[363166110,1748605853961,-1446.1000985,0.00022465,2]
[363166111,1748605853972,-744.9799015,0.00022465,2]
[363166112,1748605853983,-467.62,0.00022465,2]
[363166113,1748605853992,-535.24,0.00022465,2]
[363166114,1748605854002,-5359.91291145,0.00022465,2]
[363166115,1748605854579,-3069.56,0.00021917,2]
[363166116,1748605854589,-3069.56,0.00022191,2]
[363166117,1748605854598,-882.0,0.00022328,2]
[363166118,1748605854608,-800.0,0.0002243,8]
[363166119,1748605854617,-800.0,0.0002243,8]
[363166120,1748605854626,-800.0,0.0002243,8]
[363166121,1748605854636,-800.0,0.0002243,8]
[363166122,1748605854646,-800.0,0.0002243,8]
[363166123,1748605854656,-800.0,0.0002243,8]
[363166124,1748605854665,-800.0,0.0002243,8]
[363166125,1748605854675,-1003.05708855,0.00022465,2]
[363166126,1748605854684,-463.45,0.00022465,2]
[363166127,1748605854693,-436.04,0.00022465,2]
[363166128,1748605854703,-693.78,0.00022465,2]
[363166129,1748605854712,-2662.92,0.00022465,2]
[363166130,1748605854722,-691.26,0.00022465,2]
[363166131,1748605854731,-930.08,0.00022465,2]
[363166132,1748605854741,-1536.63,0.00022465,2]
[363166133,1748605854750,-420.0,0.00022465,2]
[363166134,1748605854760,-1078.87,0.00022465,2]
[363166135,1748605854770,-849.33,0.00022465,2]
[363166136,1748605854780,-884.56,0.00022465,2]
[363166137,1748605854790,-2001.24,0.00022465,2]
[363166138,1748605854800,-935.78,0.00022465,2]
[363166139,1748605854810,-420.0,0.00022465,2]
[363166140,1748605854819,-1829.69,0.00022465,2]
[363166141,1748605854829,-420.0,0.00022465,2]
[363166142,1748605854839,-540.81,0.00022465,2]
[363166143,1748605854848,-420.0,0.00022465,2]
[363166144,1748605854858,-665.6,0.00022465,2]
[363166145,1748605854867,-420.0,0.00022465,2]
[363166146,1748605854877,-620.9,0.00022465,2]
[363166147,1748605854886,-4862.61,0.00022465,2]
[363166148,1748605854896,-1334.57,0.00022465,2]
[363166149,1748605854907,-4581.85,0.00022465,2]
[363166150,1748605854916,-831.83,0.00022465,2]
[363166151,1748605854926,-2823.39,0.00022465,2]
[363166152,1748605854935,-724.95,0.00022465,2]
[363166153,1748605854945,-1411.6,0.00022465,2]
[363166154,1748605854955,-651.98,0.00022465,2]
[363166155,1748605854964,-765.54,0.00022465,2]
[363166156,1748605854973,-1594.09,0.00022465,2]
[363166157,1748605854983,-420.0,0.00022465,2]
[363166158,1748605854992,-420.0,0.00022465,2]
[363166159,1748605855002,-1195.46,0.00022465,2]
[363166160,1748605855011,-2574.23,0.00022465,2]
[363166161,1748605855021,-420.0,0.00022465,2]
[363166162,1748605855031,-432.56694647,0.00022465,2]
[363166163,1748605855041,-1025.22,0.00022465,2]
[363166164,1748605855050,-2369.54,0.00022465,2]
[363166165,1748605855060,-2065.25,0.00022465,2]
[363166166,1748605855070,-1113.01,0.00022465,2]
[363166167,1748605855079,-2831.8,0.00022465,2]
[363166168,1748605855089,-1068.49,0.00022465,2]
[363166169,1748605855099,-613.49,0.00022465,2]
[363166170,1748605855109,-3622.62,0.00022465,2]
[363166171,1748605855119,-435.59,0.00022465,2]
[363166172,1748605855128,-420.0,0.00022465,2]
[363166173,1748605855138,-3121.77,0.00022465,2]
[363166174,1748605855147,-1104.67,0.00022465,2]
[363166175,1748605855159,-2664.09,0.00022465,2]
[363166176,1748605855169,-484.87,0.00022465,2]
[363166177,1748605855180,-467.27,0.00022465,2]
[363166178,1748605855191,-688.21,0.00022465,2]
[363166179,1748605855201,-684.25,0.00022465,2]
[363166180,1748605855210,-420.0,0.00022465,2]
[363166181,1748605855220,-478.64,0.00022465,2]
[363166182,1748605855230,-696.11,0.00022465,2]
[363166183,1748605855239,-958.22,0.00022465,2]
[363166184,1748605855249,-539.47,0.00022465,2]
[363166185,1748605855258,-1852.75,0.00022465,2]
[363166186,1748605855269,-651.94,0.00022465,2]
[363166187,1748605855280,-1120.7,0.00022465,2]
[363166188,1748605855290,-466.95,0.00022465,2]
[363166189,1748605855300,-2335.9,0.00022465,2]
[363166190,1748605855309,-711.49,0.00022465,2]
[363166191,1748605855320,-420.0,0.00022465,2]
[363166192,1748605855330,-645.66,0.00022465,2]
[363166193,1748605855339,-420.0,0.00022465,2]
[363166194,1748605855349,-1424.33,0.00022465,2]
[363166195,1748605855359,-1562.12,0.00022465,2]
[363166196,1748605855368,-420.0,0.00022465,2]
[363166197,1748605855376,-1776.41,0.00022465,2]
[363166198,1748605855385,-420.0,0.00022465,2]
[363166199,1748605855394,-751.2,0.00022465,2]
[363166200,1748605855404,-697.5,0.00022465,2]
[363166201,1748605855414,-2539.37,0.00022465,2]
[363166202,1748605855423,-420.0,0.00022465,2]
[363166203,1748605855432,-438.94,0.00022465,2]
[363166204,1748605855441,-818.24,0.00022465,2]
[363166205,1748605855449,-5764.0,0.00022465,2]
[363166206,1748605855458,-420.0,0.00022465,2]
[363166207,1748605855467,-7162.13,0.00022465,2]
[363166208,1748605855476,-499.19,0.00022465,2]
[363166209,1748605855485,-1023.17,0.00022465,2]
[363166210,1748605855494,-423.99,0.00022465,2]
[363166211,1748605855503,-597.88,0.00022465,2]
[363166212,1748605855512,-455.48,0.00022465,2]
[363166213,1748605855586,-3192.7,0.00022465,2]
[363166214,1748605855595,-420.0,0.00022465,2]
[363166215,1748605855605,-1696.71,0.00022465,2]
[363166216,1748605855615,-420.0,0.00022465,2]
[363166217,1748605855624,-1204.07,0.00022465,2]
[363166218,1748605855633,-421.81,0.00022465,2]
[363166219,1748605855643,-1055.8,0.00022465,2]
[363166220,1748605855652,-660.44,0.00022465,2]
[363166221,1748605855661,-7497.66,0.00022465,2]
[363166222,1748605855670,-537.4,0.00022465,2]
[363166223,1748605855679,-1000.0,0.00022465,2]
[363166224,1748605855687,-665.55,0.00022465,2]
[363166225,1748605855696,-1146.05,0.00022465,2]
[363166226,1748605855705,-433.4,0.00022465,2]
[363166227,1748605855714,-420.0,0.00022465,2]
[363166228,1748605855723,-5115.53,0.00022465,2]
[363166229,1748605855732,-492.23,0.00022465,2]
[363166230,1748605855742,-420.0,0.00022465,2]
[363166231,1748605855752,-420.0,0.00022465,2]
[363166232,1748605855761,-420.0,0.00022465,2]
[363166233,1748605855770,-420.0,0.00022465,2]
[363166234,1748605855779,-528.37,0.00022465,2]
[363166235,1748605855788,-512.77,0.00022465,2]
[363166236,1748605855798,-420.0,0.00022465,2]
[363166237,1748605855807,-4938.81,0.00022465,2]
[363166238,1748605855816,-782.04,0.00022465,2]
[363166239,1748605855825,-1682.32,0.00022465,2]
[363166240,1748605855834,-961.79,0.00022465,2]
[363166241,1748605855843,-420.0,0.00022465,2]
[363166242,1748605855852,-420.0,0.00022465,2]
[363166243,1748605855861,-420.0,0.00022465,2]
[363166244,1748605855872,-497.78,0.00022465,2]
[363166245,1748605855882,-563.44,0.00022465,2]
[363166246,1748605855892,-785.45,0.00022465,2]
[363166247,1748605855901,-420.0,0.00022465,2]
[363166248,1748605855911,-420.0,0.00022465,2]
[363166249,1748605855920,-3229.7,0.00022465,2]
[363166250,1748605855929,-420.0,0.00022465,2]
[363166251,1748605855938,-482.13,0.00022465,2]
[363166252,1748605855948,-594.08,0.00022465,2]
[363166253,1748605855957,-420.0,0.00022465,2]
[363166254,1748605855967,-908.54,0.00022465,2]
[363166255,1748605855976,-82047.63,0.00022465,2]
[363166256,1748605855986,-420.0,0.00022465,2]
[363166257,1748605855995,-420.0,0.00022465,2]
[363166258,1748605856005,-584.27,0.00022465,2]
[363166259,1748605856014,-984.23,0.00022465,2]
[363166260,1748605856023,-1509.37,0.00022465,2]
[363166261,1748605856032,-430.71,0.00022465,2]
[363166262,1748605856042,-420.0,0.00022465,2]
[363166263,1748605856051,-420.0,0.00022465,2]
[363166264,1748605856060,-1254.01,0.00022465,2]
[363166265,1748605856069,-420.0,0.00022465,2]
[363166266,1748605856079,-420.0,0.00022465,2]
[363166267,1748605856088,-1567.14,0.00022465,2]
[363166268,1748605856097,-2030.73,0.00022465,2]
[363166269,1748605856107,-666.87,0.00022465,2]
[363166270,1748605856116,-420.0,0.00022465,2]
[363166271,1748605856126,-420.0,0.00022465,2]
[363166272,1748605856134,-999.41,0.00022465,2]
[363166273,1748605856144,-618.43,0.00022465,2]
[363166274,1748605856154,-420.0,0.00022465,2]
[363166275,1748605856163,-21205.53,0.00022465,2]
[363166276,1748605856174,-4227.82,0.00022465,2]
[363166277,1748605856183,-312.6,0.00022465,2]
[363166278,1748605856192,-759.02,0.00022465,2]
[363166279,1748605856201,-494.14,0.00022465,2]
[363166280,1748605856210,-2236.29,0.00022465,2]
[363166281,1748605856219,-1179.69,0.00022465,2]
[363166282,1748605856228,-3069.56,0.00022465,2]
[363166283,1748605856237,-500.0,0.00022473,2]
[363166284,1748605856247,-155.08544795,0.00022528,2]
[363166285,1748605856256,-155.08544795,0.00022607,2]
[363166286,1748605856265,-489.63676872,0.00022659,7]
[363166287,1748605856278,-155.08544795,0.00022686,2]
[363166288,1748605856287,-151.0,0.00022738,7]
[363166289,1748605856296,-151.0,0.00022738,7]
[363166290,1748605856305,-151.0,0.00022739,7]
[363166291,1748605856315,-420.0,0.00022739,2]
[363166292,1748605856323,-420.0,0.00022739,2]
[363166293,1748605856331,-420.0,0.00022739,2]
[363166294,1748605856339,-420.0,0.00022739,2]
[363166295,1748605856348,-420.0,0.00022739,2]
[363166296,1748605856358,-420.0,0.00022739,2]
[363166297,1748605856367,-420.0,0.00022739,2]
[363166298,1748605856376,-420.0,0.00022739,2]
[363166299,1748605856385,-420.0,0.00022739,2]
[363166300,1748605856394,-157.75443841,0.00022739,2]
[363166301,1748605856402,-420.0,0.00022739,2]
[363166302,1748605856415,-420.0,0.00022739,2]
[363166303,1748605856423,-420.0,0.00022739,2]
[363166304,1748605856432,-420.0,0.00022739,2]
[363166305,1748605856441,-420.0,0.00022739,2]
[363166306,1748605856450,-420.0,0.00022739,2]
[363166307,1748605856460,-420.0,0.00022739,2]
[363166308,1748605856469,-420.0,0.00022739,2]
[363166309,1748605856478,-420.0,0.00022739,2]
[363166310,1748605856488,-420.0,0.00022739,2]
[363166311,1748605856498,-420.0,0.00022739,2]
[363166312,1748605856507,-420.0,0.00022739,2]
[363166313,1748605856516,-567.36,0.00022739,2]
[363166314,1748605856525,-420.0,0.00022739,2]
[363166315,1748605856534,-542.97,0.00022739,2]
[363166316,1748605856546,-420.0,0.00022739,2]
[363166317,1748605856556,-420.0,0.00022739,2]
[363166318,1748605856567,-420.0,0.00022739,2]
[363166319,1748605856576,-420.0,0.00022739,2]
[363166320,1748605856586,-420.0,0.00022739,2]
[363166321,1748605856596,-574.43,0.00022739,2]
[363166322,1748605856607,-420.0,0.00022739,2]
[363166323,1748605856617,-420.0,0.00022739,2]
[363166324,1748605856627,-420.0,0.00022739,2]
[363166325,1748605856637,-420.0,0.00022739,2]
[363166326,1748605856647,-183.04,0.00022739,2]
[363166327,1748605856657,-420.0,0.00022739,2]
[363166328,1748605856666,-420.0,0.00022739,2]
[363166329,1748605856676,-420.0,0.00022739,2]
[363166330,1748605856686,-420.0,0.00022739,2]
[363166331,1748605856695,-420.0,0.00022739,2]
[363166332,1748605856705,-420.0,0.00022739,2]
[363166333,1748605856715,-449.48,0.00022739,2]
[363166334,1748605856725,-420.0,0.00022739,2]
[363166335,1748605856735,-420.0,0.00022739,2]
[363166336,1748605856745,-436.68,0.00022739,2]
[363166337,1748605856755,-1007.56,0.00022739,2]
[363166338,1748605856764,-448.1,0.00022739,2]
[363166339,1748605856774,-420.0,0.00022739,2]
[363166340,1748605856784,-420.0,0.00022739,2]
[363166341,1748605856793,-420.0,0.00022739,2]
[363166342,1748605856803,-673.95,0.00022739,2]
[363166343,1748605856813,-420.0,0.00022739,2]
[363166344,1748605856824,-420.0,0.00022739,2]
[363166345,1748605856834,-423.71,0.00022739,2]
[363166346,1748605856843,-420.0,0.00022739,2]
[363166347,1748605856853,-420.0,0.00022739,2]
[363166348,1748605856863,-446.37,0.00022739,2]
[363166349,1748605856872,-420.0,0.00022739,2]
[363166350,1748605856882,-420.0,0.00022739,2]
[363166351,1748605856892,-808.02,0.00022739,2]
[363166352,1748605856902,-420.0,0.00022739,2]
[363166353,1748605856912,-420.0,0.00022739,2]
[363166354,1748605856922,-420.0,0.00022739,2]
[363166355,1748605856932,-531.4,0.00022739,2]
[363166356,1748605856942,-510.45,0.00022739,2]
[363166357,1748605856952,-420.0,0.00022739,2]
[363166358,1748605856962,-420.0,0.00022739,2]
[363166359,1748605856972,-728.34,0.00022739,2]
[363166360,1748605856982,-420.0,0.00022739,2]
[363166361,1748605856992,-504.92,0.00022739,2]
[363166362,1748605857001,-420.0,0.00022739,2]
[363166363,1748605857011,-420.0,0.00022739,2]
[363166364,1748605857022,-420.0,0.00022739,2]
[363166365,1748605857031,-420.0,0.00022739,2]
[363166366,1748605857041,-420.0,0.00022739,2]
[363166367,1748605857051,-940.5,0.00022739,2]
[363166368,1748605857060,-420.0,0.00022739,2]
[363166369,1748605857069,-425.06,0.00022739,2]
[363166370,1748605857078,-532.57,0.00022739,2]
[363166371,1748605857088,-420.0,0.00022739,2]
[363166372,1748605857097,-881.82,0.00022739,2]
[363166373,1748605857107,-951.97,0.00022739,2]
[363166374,1748605857117,-843.2,0.00022739,2]
[363166375,1748605857128,-420.0,0.00022739,2]
[363166376,1748605857138,-597.12,0.00022739,2]
[363166377,1748605857147,-420.0,0.00022739,2]
[363166378,1748605857157,-420.0,0.00022739,2]
[363166379,1748605857167,-420.0,0.00022739,2]
[363166380,1748605857177,-420.0,0.00022739,2]
[363166381,1748605857188,-420.0,0.00022739,2]
[363166382,1748605857198,-420.0,0.00022739,2]
[363166383,1748605857208,-728.78,0.00022739,2]
[363166384,1748605857218,-420.0,0.00022739,2]
[363166385,1748605857228,-420.0,0.00022739,2]
[363166386,1748605857238,-420.0,0.00022739,2]
[363166387,1748605857248,-1054.49,0.00022739,2]
[363166388,1748605857258,-420.0,0.00022739,2]
[363166389,1748605857268,-420.0,0.00022739,2]
[363166390,1748605857279,-420.0,0.00022739,2]
[363166391,1748605857289,-568.03,0.00022739,2]
[363166392,1748605857299,-420.0,0.00022739,2]
[363166393,1748605857308,-420.0,0.00022739,2]
[363166394,1748605857318,-788.03,0.00022739,2]
[363166395,1748605857328,-420.0,0.00022739,2]
[363166396,1748605857338,-1066.18,0.00022739,2]
[363166397,1748605857348,-420.0,0.00022739,2]
[363166398,1748605857359,-420.0,0.00022739,2]
[363166399,1748605857369,-1077.38,0.00022739,2]
[363166400,1748605857380,-420.0,0.00022739,2]
[363166401,1748605857390,-420.0,0.00022739,2]
[363166402,1748605857399,-425.6,0.00022739,2]
[363166403,1748605857409,-420.0,0.00022739,2]
[363166404,1748605857419,-1270.78,0.00022739,2]
[363166405,1748605857429,-817.51,0.00022739,2]
[363166406,1748605857438,-420.0,0.00022739,2]
[363166407,1748605857448,-420.0,0.00022739,2]
[363166408,1748605857457,-708.32,0.00022739,2]
[363166409,1748605857467,-1537.61,0.00022739,2]
[363166410,1748605857477,-420.0,0.00022739,2]
[363166411,1748605857487,-420.0,0.00022739,2]
[363166412,1748605857496,-420.0,0.00022739,2]
[363166413,1748605857505,-420.0,0.00022739,2]
[363166414,1748605857515,-497.91494061,0.00022739,2]
[363166415,1748605857524,-420.0,0.00022739,2]
[363166416,1748605857534,-420.0,0.00022739,2]
[363166417,1748605857544,-420.0,0.00022739,2]
[363166418,1748605857554,-420.0,0.00022739,2]
[363166419,1748605857564,-420.0,0.00022739,2]
[363166420,1748605857574,-420.0,0.00022739,2]
[363166421,1748605857584,-420.0,0.00022739,2]
[363166422,1748605857594,-518.46,0.00022739,2]
[363166423,1748605857603,-420.0,0.00022739,2]
[363166424,1748605857613,-545.5,0.00022739,2]
[363166425,1748605857622,-813.25,0.00022739,2]
[363166426,1748605857631,-640.53,0.00022739,2]
[363166427,1748605857641,-420.0,0.00022739,2]
[363166428,1748605857650,-443.73,0.00022739,2]
[363166429,1748605857661,-451.86,0.00022739,2]
[363166430,1748605857670,-420.0,0.00022739,2]
[363166431,1748605857679,-420.0,0.00022739,2]
[363166432,1748605857688,-420.0,0.00022739,2]
[363166433,1748605857697,-420.0,0.00022739,2]
[363166434,1748605857707,-420.0,0.00022739,2]
[363166435,1748605857716,-639.7,0.00022739,2]
[363166436,1748605857727,-448.12,0.00022739,2]
[363166437,1748605857735,-420.0,0.00022739,2]
[363166438,1748605857747,-481.65,0.00022739,2]
[363166439,1748605857757,-597.99,0.00022739,2]
[363166440,1748605857766,-482.97,0.00022739,2]
[363166441,1748605857776,-772.6,0.00022739,2]
[363166442,1748605857785,-530.64,0.00022739,2]
[363166443,1748605857795,-420.0,0.00022739,2]
[363166444,1748605857804,-420.0,0.00022739,2]
[363166445,1748605857813,-580.34,0.00022739,2]
[363166446,1748605857823,-459.95,0.00022739,2]
[363166447,1748605857832,-420.0,0.00022739,2]
[363166448,1748605857841,-520.83,0.00022739,2]
[363166449,1748605857850,-643.46,0.00022739,2]
[363166450,1748605857859,-420.0,0.00022739,2]
[363166451,1748605857867,-420.0,0.00022739,2]
[363166452,1748605857876,-1080.01,0.00022739,2]
[363166453,1748605857884,-420.0,0.00022739,2]
[363166454,1748605857894,-420.0,0.00022739,2]
[363166455,1748605857902,-420.0,0.00022739,2]
[363166456,1748605857910,-420.0,0.00022739,2]
[363166457,1748605857918,-420.0,0.00022739,2]
[363166458,1748605857927,-420.0,0.00022739,2]
[363166459,1748605857935,-420.0,0.00022739,2]
[363166460,1748605857943,-726.53,0.00022739,2]
[363166461,1748605857951,-534.73,0.00022739,2]
[363166462,1748605857959,-1440.61,0.00022739,2]
[363166463,1748605857967,-420.0,0.00022739,2]
[363166464,1748605857975,-420.0,0.00022739,2]
[363166465,1748605857983,-420.0,0.00022739,2]
[363166466,1748605857992,-420.0,0.00022739,2]
[363166467,1748605858001,-546.37,0.00022739,2]
[363166468,1748605858010,-883.79,0.00022739,2]
[363166469,1748605858019,-623.56,0.00022739,2]
[363166470,1748605858028,-487.77,0.00022739,2]
[363166471,1748605858037,-420.0,0.00022739,2]
[363166472,1748605858047,-420.0,0.00022739,2]
[363166473,1748605858056,-420.0,0.00022739,2]
[363166474,1748605858065,-420.0,0.00022739,2]
[363166475,1748605858074,-420.0,0.00022739,2]
[363166476,1748605858084,-2189.84,0.00022739,2]
[363166477,1748605858093,-420.0,0.00022739,2]
[363166478,1748605858102,-750.52,0.00022739,2]
[363166479,1748605858111,-420.0,0.00022739,2]
[363166480,1748605858120,-535.44,0.00022739,2]
[363166481,1748605858130,-550.19667943,0.00022739,2]
[363166482,1748605858139,-420.0,0.00022739,2]
[363166483,1748605858149,-420.0,0.00022739,2]
[363166484,1748605858159,-420.0,0.00022739,2]
[363166485,1748605858168,-843.1,0.00022739,2]
[363166486,1748605858178,-420.0,0.00022739,2]
[363166487,1748605858187,-668.42,0.00022739,2]
[363166488,1748605858196,-420.0,0.00022739,2]
[363166489,1748605858205,-821.67,0.00022739,2]
[363166490,1748605858215,-420.0,0.00022739,2]
[363166491,1748605858223,-420.0,0.00022739,2]
[363166492,1748605858232,-420.0,0.00022739,2]
[363166493,1748605858242,-420.0,0.00022739,2]
[363166494,1748605858251,-420.0,0.00022739,2]
[363166495,1748605858260,-420.0,0.00022739,2]
[363166496,1748605858273,-1411.13,0.00022739,2]
[363166497,1748605858282,-420.0,0.00022739,2]
[363166498,1748605858291,-420.0,0.00022739,2]
[363166499,1748605858301,-300.46260268,0.00022739,2]
[363166500,1748605858310,-975.17,0.00022739,2]
[363166501,1748605858321,-420.0,0.00022739,2]
[363166502,1748605858331,-1164.67,0.00022739,2]
[363166503,1748605858340,-420.0,0.00022739,2]
[363166504,1748605858349,-420.0,0.00022739,2]
[363166505,1748605858360,-420.0,0.00022739,2]
[363166506,1748605858371,-964.24,0.00022739,2]
[363166507,1748605858380,-562.97,0.00022739,2]
[363166508,1748605858389,-420.0,0.00022739,2]
[363166509,1748605858399,-1756.77,0.00022739,2]
[363166510,1748605858409,-915.09,0.00022739,2]
[363166511,1748605858419,-420.0,0.00022739,2]
[363166512,1748605858428,-916.8,0.00022739,2]
[363166513,1748605858438,-197.92731945,0.00022739,2]
[363166514,1748605858448,-420.0,0.00022739,2]
[363166515,1748605858457,-426.39,0.00022739,2]
[363166516,1748605858467,-528.7,0.00022739,2]
[363166517,1748605858476,-420.0,0.00022739,2]
[363166518,1748605858486,-948.94,0.00022739,2]
[363166519,1748605858496,-420.0,0.00022739,2]
[363166520,1748605858505,-420.0,0.00022739,2]
[363166521,1748605858515,-936.49,0.00022739,2]
[363166522,1748605858524,-929.94,0.00022739,2]
[363166523,1748605858533,-420.0,0.00022739,2]
[363166524,1748605858543,-430.81,0.00022739,2]
[363166525,1748605858553,-420.0,0.00022739,2]
[363166526,1748605858562,-471.97,0.00022739,2]
[363166527,1748605858572,-420.0,0.00022739,2]
[363166528,1748605858582,-1017.69,0.00022739,2]
[363166529,1748605858591,-528.96,0.00022739,2]
[363166530,1748605858601,-873.09,0.00022739,2]
[363166531,1748605858611,-420.0,0.00022739,2]
[363166532,1748605858621,-420.0,0.00022739,2]
[363166533,1748605858630,-320.78369698,0.00022739,2]
[363166534,1748605858640,-420.0,0.00022739,2]
[363166535,1748605858649,-1161.61,0.00022739,2]
[363166536,1748605858660,-678.18,0.00022739,2]
[363166537,1748605858669,-975.12,0.00022739,2]
[363166538,1748605858679,-420.0,0.00022739,2]